bitfinex-derivatives/quotes_BTCF0:USTF0_20260119
["timestamp","ask_amount","ask_price","bid_price","bid_amount"]
[1768836992840,0.13096594,93054.0,93045.0,0.010753]
[1768836993539,0.0401723,93053.0,93045.0,0.010753]
[1768836994042,0.0401723,93053.0,93042.0,0.010753]
[1768836994241,0.0401723,93052.0,93042.0,0.010753]
[1768836994743,0.0401723,93052.0,93044.0,0.010753]
[1768836995444,0.0401723,93052.0,93039.0,0.18034982]
[1768836995634,0.09079364,93053.0,93039.0,0.18034982]
[1768836996538,0.0401723,93050.0,93040.0,0.18034982]
[1768836997340,0.09079364,93053.0,93040.0,0.18034982]
[1768836997534,0.09079364,93053.0,93044.0,0.010753]
[1768836997741,0.09079364,93053.0,93041.0,0.010753]
[1768836998148,0.13096594,93053.0,93041.0,0.010753]
[1768836999153,0.0401723,93052.0,93041.0,0.010753]
[1768836999342,0.0401723,93052.0,93040.0,0.18034982]
[1768836999539,0.0401723,93052.0,93040.0,0.19110282]
[1768836999739,0.0401723,93052.0,93041.0,0.010753]
[1768837003650,0.0401723,93052.0,93042.0,0.010753]
[1768837007355,0.0401723,93052.0,93040.0,0.18034982]
[1768837007553,0.0401723,93052.0,93041.0,0.010753]
[1768837009154,0.0401723,93052.0,93042.0,0.010753]
[1768837009455,0.0401723,93052.0,84329.0,0.05]
[1768837009456,0.13283899,93037.0,93026.0,0.09676]
[1768837009659,0.13283899,93037.0,93028.0,0.010755]
[1768837009846,0.13283899,93037.0,93026.0,0.09676]
[1768837010047,0.04004643,93033.0,93023.0,0.010755]
[1768837010247,0.04004643,93033.0,93025.0,0.09676]
[1768837010557,0.04004643,93031.0,93023.0,0.010755]
[1768837010867,0.09279256,93032.0,93023.0,0.010755]
[1768837011060,0.04004643,93035.0,93022.0,0.01197396]
[1768837011354,0.04004643,93035.0,93021.0,0.09676]
[1768837011544,0.04004643,93035.0,93029.0,0.010755]
[1768837012954,0.04004643,93035.0,93028.0,0.010755]
[1768837015254,0.0393397,93038.0,93030.0,0.010755]
[1768837015949,0.00016124,93041.0,93030.0,0.010755]
[1768837016254,0.00016124,93041.0,93028.0,0.18034982]
[1768837017453,0.00016124,93041.0,93035.0,0.010754]
[1768837018148,2.4e-07,93041.0,93029.0,0.05366557]
[1768837018353,0.0968,93063.0,93044.0,0.04291057]
[1768837018555,0.0393397,93062.0,93047.0,0.010753]
[1768837018746,0.0393397,93061.0,93043.0,0.09991733]
[1768837018952,0.0393397,93055.0,93040.0,0.18034982]
[1768837019540,0.13308565,93054.0,93039.0,0.0968]
[1768837019752,0.0393397,93049.0,93039.0,0.0968]
[1768837020053,0.0393397,93049.0,93038.0,0.09696124]
[1768837021747,0.0393397,93052.0,93042.0,0.010753]
[1768837021948,0.09374595,93055.0,93042.0,0.010753]
[1768837022148,0.09374595,93055.0,93039.0,0.19110282]
[1768837023556,0.09374595,93055.0,93041.0,0.010753]
[1768837025952,0.09374595,93055.0,93039.0,0.18034982]
[1768837026147,0.0393397,93058.0,93045.0,0.010753]
[1768837027055,0.0393397,93058.0,93047.0,0.010753]
[1768837027656,0.0393397,93058.0,93043.0,0.010753]
[1768837027858,0.13308565,93058.0,93043.0,0.010753]
[1768837028155,0.0393397,93056.0,93043.0,0.010753]
[1768837028456,0.0393397,93056.0,93040.0,0.18034982]
[1768837028652,0.0393397,93061.0,93041.0,0.04291057]
[1768837029058,0.0393397,93061.0,93048.0,0.010753]
[1768837029657,0.0393397,93061.0,93050.0,0.010752]
[1768837029957,0.0393397,93061.0,93052.0,0.010752]
[1768837031561,0.0393397,93061.0,93049.0,0.010752]
[1768837033652,0.19054595,93063.0,93049.0,0.010752]
[1768837033853,0.0393397,93062.0,93046.0,0.010753]
[1768837034053,0.0393397,93061.0,93046.0,0.010753]
[1768837034355,0.0393397,93061.0,93048.0,0.010753]
[1768837035565,0.0393397,93061.0,93041.0,0.09991733]
[1768837035958,0.0393397,93061.0,93050.0,0.010752]
[1768837036155,0.09374595,93062.0,93050.0,0.010752]
[1768837036559,0.0393397,93066.0,93050.0,0.18034982]
[1768837036768,0.09374595,93068.0,93050.0,0.18034982]
[1768837036958,0.09374595,93068.0,93053.0,0.010752]
[1768837037156,0.13308565,93068.0,93053.0,0.010752]
[1768837037467,0.13308565,93065.0,93046.0,0.09991733]
[1768837037665,0.0393397,93062.0,93049.0,0.010752]
[1768837037866,0.0393397,93062.0,93053.0,0.010752]
[1768837038265,0.09374595,93063.0,93053.0,0.010752]
[1768837038466,0.13308565,93044.0,93013.0,0.1535849]
[1768837038664,0.0393397,93035.0,93019.0,0.09676]
[1768837038859,0.09374595,93033.0,93016.0,0.09676]
[1768837039065,0.09374595,93033.0,93024.0,0.010755]
[1768837039260,0.09374595,93038.0,93020.0,0.18034982]
[1768837039467,0.09374595,93046.0,93028.0,0.010755]
[1768837039664,0.09374595,93046.0,93016.0,0.09676]
[1768837039665,0.09374595,93038.0,93003.0,0.04291057]
[1768837039864,0.09374595,93038.0,92962.0,0.1076]
[1768837039865,0.09374595,92993.0,92956.0,0.04291057]
[1768837040167,0.09374595,92989.0,92967.0,0.1428279]
[1768837040367,0.09676,92993.0,92976.0,0.1428279]
[1768837040567,0.09374595,93007.0,92981.0,0.1428279]
[1768837040769,0.09676,93006.0,92988.0,0.04291057]
[1768837040978,0.09676,93006.0,92970.0,0.19111182]
[1768837040979,0.0393397,93017.0,92996.0,0.22326039]
[1768837041180,0.09374595,93019.0,93007.0,0.18034982]
[1768837041390,0.00236346,93084.0,93018.0,0.1428279]
[1768837041574,0.09676,93068.0,93040.0,0.18034982]
[1768837041775,0.18034982,93060.0,93030.0,0.0968]
[1768837041972,0.010752,93050.0,93021.0,0.010756]
[1768837042175,0.18034982,93060.0,93019.0,0.0968]
[1768837042381,0.18034982,93030.0,93021.0,0.010756]
[1768837042586,0.18034982,93030.0,93019.0,0.0968]
[1768837042587,0.18034982,93031.0,93019.0,0.0968]
[1768837042882,0.18034982,93031.0,93011.0,0.010757]
[1768837043081,0.18034982,93031.0,93016.0,0.06001406]
[1768837043478,0.18034982,93031.0,93019.0,0.06001406]
[1768837043784,0.18034982,93031.0,93017.0,0.06001406]
[1768837043980,0.18034982,93031.0,93016.0,0.06001406]
[1768837044182,0.04535606,93033.0,93019.0,0.010756]
[1768837044383,0.18034982,93030.0,93021.0,0.010756]
[1768837044778,0.18034982,93030.0,93022.0,0.06001406]
[1768837044985,0.04535606,93033.0,93023.0,0.06001406]
[1768837045186,0.04535606,93046.0,93028.0,0.010755]
[1768837045390,0.14008797,93056.0,93036.0,0.010754]
[1768837045890,0.18034982,93050.0,93036.0,0.010754]
[1768837046092,0.18034982,93050.0,93032.0,0.010754]
[1768837046388,0.18034982,93050.0,93034.0,0.06001406]
[1768837046585,0.18034982,93050.0,93035.0,0.06001406]
[1768837046788,0.18034982,93050.0,93035.0,0.07076806]
[1768837046984,0.18034982,93050.0,93035.0,0.010754]
[1768837047200,0.18034982,93050.0,93037.0,0.06001406]
[1768837047486,0.04535606,93055.0,93037.0,0.010754]
[1768837048491,0.04535606,93055.0,93032.0,0.00016123]
[1768837048794,0.04535606,93055.0,93040.0,0.010753]
[1768837048989,0.04535606,93055.0,93040.0,0.00838712]
[1768837049297,0.04535606,93055.0,93036.0,0.010754]
[1768837049994,0.04535606,93055.0,93039.0,0.010754]
[1768837050489,0.04535606,93055.0,93035.0,0.010754]
[1768837050685,0.04535606,93054.0,93035.0,0.00838902]
[1768837050992,0.04535606,93053.0,93035.0,0.06840308]
[1768837051192,0.04535606,93053.0,93036.0,0.06001406]
[1768837051398,0.09921405,93042.0,93032.0,0.00016123]
[1768837051694,0.09921405,93042.0,93019.0,0.09634769]
[1768837051695,0.00448214,93038.0,93024.0,0.0968]
[1768837054397,0.09473191,93039.0,93024.0,0.0968]
[1768837056895,0.00753134,93043.0,93030.0,0.010755]
[1768837057195,0.00753134,93043.0,93024.0,0.0968]
[1768837057590,0.00753134,93043.0,93029.0,0.010755]
[1768837057790,0.00753134,93043.0,93031.0,0.010754]
[1768837058395,0.00753134,93043.0,93027.0,0.010755]
[1768837058695,0.00753134,93043.0,93025.0,0.010755]
[1768837059993,0.00753134,93043.0,93027.0,0.010755]
[1768837060594,0.00753134,93043.0,93024.0,0.0968]
[1768837061398,0.00753134,93043.0,93026.0,0.010755]
[1768837063600,0.01828434,93043.0,93026.0,0.010755]
[1768837065602,0.01828434,93043.0,93028.0,0.010755]
[1768837067303,0.010753,93042.0,93028.0,0.010755]
[1768837067502,0.010754,93037.0,93024.0,0.0968]
[1768837067705,0.010754,93040.0,93025.0,0.010755]
[1768837067904,0.09672046,93042.0,93027.0,0.010755]
[1768837068099,0.010753,93040.0,93027.0,0.010755]
[1768837069306,0.0152527,93040.0,93024.0,0.107555]
[1768837070002,0.010754,93037.0,93024.0,0.0968]
[1768837070210,0.010754,93037.0,93006.0,0.07125888]
[1768837070211,0.00416529,93027.0,93012.0,0.107557]
[1768837070406,0.09672046,93028.0,93007.0,0.010757]
[1768837070407,0.00416529,93019.0,93007.0,0.010757]
[1768837070607,0.00416529,93018.0,92999.0,0.0968]
[1768837070801,0.09672046,93019.0,93007.0,0.010757]
[1768837071000,0.09672046,93019.0,93003.0,0.010758]
[1768837071202,0.00016123,93018.0,93000.0,0.13664349]
[1768837071604,0.00016123,93018.0,93000.0,0.09125689]
[1768837072202,0.00016123,93018.0,93001.0,0.010758]
[1768837072402,0.00016123,93018.0,93003.0,0.010758]
[1768837073206,0.00016123,93018.0,93002.0,0.010758]
[1768837073505,0.00016123,93018.0,93001.0,0.04584954]
[1768837074604,0.010756,93017.0,93001.0,0.04584954]
[1768837074906,0.010756,93015.0,93004.0,0.00236549]
[1768837075202,0.00261257,93010.0,92993.0,0.010759]
[1768837075404,0.01336957,93010.0,92989.0,0.09608452]
[1768837075606,0.010757,93008.0,92989.0,0.09608452]
[1768837075801,0.010757,93006.0,92989.0,0.09608452]
[1768837076007,0.010758,93005.0,92988.0,0.010759]
[1768837076202,0.09754121,93007.0,92984.0,0.15269406]
[1768837076506,0.010758,93001.0,92985.0,0.0968]
[1768837076810,0.010758,93002.0,92986.0,0.01076]
[1768837077009,0.00316999,92997.0,92975.0,0.14193406]
[1768837077214,0.010759,92995.0,92979.0,0.15269406]
[1768837077517,0.010759,92991.0,92973.0,0.10684552]
[1768837077817,0.010759,92991.0,92974.0,0.010761]
[1768837078007,0.010759,92989.0,92973.0,0.09608452]
[1768837078209,0.00386225,92988.0,92973.0,0.09608452]
[1768837078409,0.00386225,92988.0,92973.0,0.10684552]
[1768837078714,0.00386225,92988.0,92975.0,0.010761]
[1768837078907,0.00386225,92988.0,92969.0,0.00236639]
[1768837079113,0.00386225,92988.0,92928.0,0.38728]
[1768837079114,0.00272774,92979.0,92963.0,0.010762]
[1768837079416,0.00272774,92979.0,92959.0,0.10684752]
[1768837079717,0.09437122,92980.0,92959.0,0.15269706]
[1768837079912,0.09437122,92980.0,92960.0,0.04584954]
[1768837080212,0.09781461,92980.0,92960.0,0.04584954]
[1768837080716,0.09781461,92980.0,92961.0,0.010763]
[1768837081117,0.10857561,92980.0,92961.0,0.010763]
[1768837081414,0.010761,92977.0,92960.0,0.04584954]
[1768837081811,0.010761,92977.0,92952.0,0.0968]
[1768837081812,0.010762,92968.0,92949.0,0.0131309]
[1768837082005,0.09437122,92970.0,92950.0,0.010764]
[1768837082410,0.010762,92967.0,92949.0,0.0023669]
[1768837082816,0.00013401,92966.0,92949.0,0.0023669]
[1768837083702,0.01201925,92963.0,92949.0,0.0023669]
[1768837083903,0.01202025,92959.0,92936.0,0.010765]
[1768837084216,0.01202025,92959.0,92939.0,0.010765]
[1768837084615,0.00125725,92959.0,92942.0,0.010765]
[1768837084815,0.00125725,92959.0,92945.0,0.010764]
[1768837085011,0.09437122,92962.0,92945.0,0.010764]
[1768837085810,0.09437122,92962.0,92942.0,0.010765]
[1768837086017,0.09684,92961.0,92947.0,0.010764]
[1768837086202,0.09684,92961.0,92952.0,0.04584954]
[1768837086409,0.00013401,92966.0,92956.0,0.09608452]
[1768837087110,0.00013401,92966.0,92952.0,0.010764]
[1768837087914,0.00013401,92966.0,92951.0,0.14193406]
[1768837088119,0.00013401,92966.0,92952.0,0.09608452]
[1768837088307,0.00013401,92966.0,92955.0,0.010763]
[1768837089417,0.09684,92968.0,92955.0,0.010763]
[1768837089623,0.04568676,92973.0,92946.0,0.04584954]
[1768837089818,0.09700132,92969.0,92952.0,0.14193406]
[1768837090014,0.09700132,92969.0,92953.0,0.09608452]
[1768837090908,0.09700132,92969.0,92953.0,0.10684752]
[1768837091108,0.09700132,92969.0,92955.0,0.010763]
[1768837091717,0.01076,92982.0,92964.0,0.09608452]
[1768837091924,0.09684,92981.0,92965.0,0.09608452]
[1768837092110,0.01076,92982.0,92965.0,0.09608452]
[1768837092305,0.09684,92981.0,92965.0,0.09608452]
[1768837092510,0.01076,92980.0,92965.0,0.09608452]
[1768837092917,0.09684,92981.0,92965.0,0.09608452]
[1768837093117,0.1076,92981.0,92965.0,0.09608452]
[1768837093319,0.09920588,92989.0,92979.0,0.09608452]
[1768837094313,0.09684,92995.0,92982.0,0.09608452]
[1768837094517,0.04568676,93005.0,92985.0,0.10684452]
[1768837094518,0.09684,92997.0,92985.0,0.10684452]
[1768837094720,0.09684,92997.0,92985.0,0.09608452]
[1768837095121,0.14005798,93015.0,92991.0,0.14193406]
[1768837095315,0.010757,93009.0,92993.0,0.09608452]
[1768837095625,0.010758,93006.0,92987.0,0.15269406]
[1768837095918,0.010758,93006.0,92988.0,0.09608452]
[1768837096118,0.010757,93009.0,92992.0,0.00016132]
[1768837096307,0.010756,93015.0,92995.0,0.10684352]
[1768837096507,0.04568676,93017.0,92997.0,0.010758]
[1768837096713,0.00236498,93024.0,92998.0,0.09608452]
[1768837096714,0.107596,93016.0,92998.0,0.09608452]
[1768837097006,0.09684,93015.0,92999.0,0.09608452]
[1768837097414,0.010756,93014.0,92999.0,0.09608452]
[1768837097821,0.010757,93012.0,92999.0,0.09608452]
[1768837098116,0.04568676,92997.0,92973.0,0.09608452]
[1768837098307,0.04568676,92995.0,92974.0,0.107601]
[1768837098511,0.010759,92992.0,92974.0,0.10684552]
[1768837099519,0.01092032,92992.0,92974.0,0.10684552]
[1768837099720,0.00016132,92992.0,92974.0,0.09608452]
[1768837100009,0.00016132,92992.0,92976.0,0.09608452]
[1768837101021,0.00016132,92992.0,92981.0,0.10684452]
[1768837103017,0.04590145,93000.0,92981.0,0.09608452]
[1768837103409,0.00220468,92984.0,92981.0,0.09608452]
[1768837104022,0.010758,92999.0,92981.0,0.09608452]
[1768837104213,0.010758,92999.0,92981.0,0.14367171]
[1768837104724,0.010758,92999.0,92982.0,0.09987956]
[1768837104927,0.09684,93001.0,92982.0,0.09987956]
[1768837105119,0.09684,93001.0,92985.0,0.09987956]
[1768837105621,0.09684,93001.0,92985.0,0.14510036]
[1768837105827,0.09684,93001.0,92985.0,0.04758719]
[1768837106424,0.010758,93000.0,92985.0,0.04758719]
[1768837107627,0.09684,93001.0,92986.0,0.09987956]
[1768837107823,0.09684,93001.0,92987.0,0.09987956]
[1768837108328,0.107598,93001.0,92987.0,0.09987956]
[1768837109030,0.09684,93001.0,92987.0,0.09987956]
[1768837111131,0.010759,92996.0,92977.0,0.00016132]
[1768837111325,0.010759,92992.0,92977.0,0.00016132]
[1768837111630,0.05666045,92995.0,92977.0,0.11080188]
[1768837111824,0.010759,92995.0,92977.0,0.11080188]
[1768837112131,0.010759,92995.0,92977.0,0.15838907]
[1768837112329,0.010759,92995.0,92978.0,0.09987956]
[1768837112930,0.010759,92995.0,92979.0,0.04758719]
[1768837113229,0.010759,92995.0,92980.0,0.09987956]
[1768837113429,0.010759,92993.0,92980.0,0.09987956]
[1768837113728,0.00236588,92989.0,92980.0,0.09987956]
[1768837116733,0.00236588,92989.0,92981.0,0.11063956]
[1768837117530,0.00236588,92989.0,92983.0,0.01076]
[1768837117732,0.00236588,92989.0,92983.0,0.11063956]
[1768837118032,0.00236588,92989.0,92983.0,0.09987956]
[1768837119836,0.18061786,92993.0,92985.0,0.09987956]
[1768837120627,0.18061786,92993.0,92980.0,0.09670952]
[1768837120932,0.8546461,93091.0,92977.0,0.00016132]
[1768837120933,0.04265829,93013.0,92991.0,0.09670952]
[1768837121128,0.04265829,93011.0,92991.0,0.09670952]
[1768837121329,0.09684,93014.0,93003.0,0.09670952]
[1768837121523,0.09684,93014.0,93006.0,0.09670952]
[1768837122833,0.09684,93014.0,93007.0,0.09670952]
[1768837124327,0.010757,93013.0,93007.0,0.09670952]
[1768837125032,0.09684,93014.0,93002.0,0.04397214]
[1768837125332,0.04265829,93006.0,92983.0,0.04397214]
[1768837125531,0.18061786,92993.0,92983.0,0.04397214]
[1768837126238,0.010759,92997.0,92983.0,0.04397214]
[1768837126539,0.18061786,93000.0,92983.0,0.04397214]
[1768837126739,0.00016132,92999.0,92983.0,0.04397214]
[1768837126933,0.010759,92994.0,92981.0,0.09684]
[1768837128640,0.00016132,92999.0,92981.0,0.09684]
[1768837128837,0.00016132,92999.0,92982.0,0.04397214]
[1768837129137,0.00016132,92999.0,92982.0,0.14068166]
[1768837129344,0.00016132,92999.0,92987.0,0.01076]
[1768837129841,0.00016132,92999.0,92986.0,0.14068166]
[1768837130042,0.01091932,92999.0,92986.0,0.14068166]
[1768837131040,0.010759,92997.0,92986.0,0.09670952]
[1768837131340,0.010759,92995.0,92982.0,0.04397214]
[1768837132036,0.00016132,92999.0,92982.0,0.04397214]
[1768837132744,0.01091932,92999.0,92984.0,0.14361885]
[1768837133442,0.01091932,92999.0,92984.0,0.15437885]
[1768837134048,0.010758,92997.0,92984.0,0.14361885]
[1768837135934,0.00016132,92999.0,92985.0,0.01076]
[1768837136141,0.00016132,92999.0,92985.0,0.15437885]
[1768837136340,0.00016132,92999.0,92986.0,0.14361885]
[1768837136548,0.00016132,92999.0,92987.0,0.04667634]
[1768837137850,0.00016132,92999.0,92987.0,0.14361885]
[1768837138051,0.09684,93008.0,92998.0,0.04667634]
[1768837138248,0.010757,93013.0,92999.0,0.14361885]
[1768837138442,0.09684,93008.0,92999.0,0.14361885]
[1768837139952,0.09684,93012.0,93003.0,0.14361885]
[1768837140652,0.010757,93008.0,93003.0,0.09694251]
[1768837140854,0.010757,93006.0,92992.0,0.010759]
[1768837141043,0.010758,93004.0,92989.0,0.010759]
[1768837141242,0.010758,93004.0,92989.0,0.05743534]
[1768837141552,0.13696224,93010.0,92989.0,0.04667634]
[1768837141747,0.010758,93002.0,92989.0,0.04667634]
[1768837142648,0.13696224,92999.0,92984.0,3.2e-07]
[1768837142853,0.01076,92987.0,92975.0,0.04667634]
[1768837143053,0.010759,92989.0,92975.0,0.04667634]
[1768837143254,0.010759,92992.0,92975.0,0.06093442]
[1768837143456,0.010759,92992.0,92976.0,0.04667634]
[1768837143948,0.010759,92991.0,92978.0,0.04667634]
[1768837144855,0.010759,92989.0,92978.0,0.04667634]
[1768837145359,0.010759,92993.0,92978.0,0.05743734]
[1768837146149,0.010758,92997.0,92981.0,0.04667634]
[1768837146356,0.09684,93001.0,92982.0,0.04667634]
[1768837146548,0.010759,92991.0,92982.0,0.04667634]
[1768837146750,0.010759,92994.0,92982.0,0.04667634]
[1768837147256,0.010759,92992.0,92982.0,0.04667634]
[1768837147556,0.19137003,92992.0,92982.0,0.04667634]
[1768837148456,0.18061103,92992.0,92982.0,0.04667634]
[1768837148852,0.010759,92991.0,92982.0,0.04667634]
[1768837150246,0.09684,93001.0,92981.0,0.01076]
[1768837150451,0.19137003,92991.0,92980.0,0.04667634]
[1768837150959,0.010759,92989.0,92975.0,0.04667634]
[1768837151161,0.18061103,92991.0,92975.0,0.04667634]
[1768837151555,0.18061103,92991.0,92976.0,0.04667634]
[1768837151763,0.01076,92987.0,92973.0,0.11077903]
[1768837152056,0.01076,92987.0,92973.0,0.15745537]
[1768837152553,0.01076,92987.0,92974.0,0.04667634]
[1768837153158,0.01076,92988.0,92974.0,0.05743734]
[1768837153363,0.19137003,92991.0,92976.0,0.010761]
[1768837153550,0.010759,92989.0,92975.0,0.05743734]
[1768837153752,0.010759,92989.0,92975.0,0.04667634]
[1768837155359,0.010759,92992.0,92978.0,0.04667634]
[1768837155561,0.18061103,92990.0,92979.0,0.04667634]
[1768837157660,0.19137003,92990.0,92979.0,0.04667634]
[1768837157856,0.01076,92988.0,92979.0,0.04667634]
[1768837158159,0.18061103,92990.0,92979.0,0.04667634]
[1768837159263,0.010759,92991.0,92979.0,0.04667634]
[1768837159561,0.18061103,92990.0,92979.0,0.04667634]
[1768837160462,0.010759,92989.0,92979.0,0.04667634]
[1768837161954,0.18061103,92990.0,92979.0,0.04667634]
[1768837162357,0.01076,92988.0,92979.0,0.04667634]
[1768837165566,0.01076,92987.0,92974.0,0.04307981]
[1768837166068,0.010759,92989.0,92974.0,0.04307981]
[1768837166365,0.18061103,92990.0,92974.0,0.04307981]
[1768837166668,0.18061103,92990.0,92977.0,0.05384081]
[1768837166868,0.010759,92991.0,92977.0,0.010761]
[1768837167168,0.18061103,92990.0,92977.0,0.04307981]
[1768837167365,0.18061103,92990.0,92978.0,0.04307981]
[1768837167570,0.010758,92997.0,92982.0,0.04307981]
[1768837168368,0.09684,92996.0,92982.0,0.13340096]
[1768837168569,0.010759,92995.0,92983.0,0.04307981]
[1768837170877,0.09684,92996.0,92983.0,0.04307981]
[1768837172181,0.00016132,93005.0,92987.0,0.13340096]
[1768837172370,0.09684,93011.0,92997.0,0.04307981]
[1768837172666,0.09684,93011.0,92983.0,0.09684]
[1768837172667,0.18061103,93007.0,92988.0,0.04307981]
[1768837172875,0.09643387,93008.0,92988.0,0.04307981]
[1768837173075,0.010757,93010.0,92991.0,0.04307981]
[1768837173375,0.010757,93006.0,92993.0,0.04307981]
[1768837173576,0.09684,93011.0,92993.0,0.04307981]
[1768837174277,0.010758,93003.0,92993.0,0.04307981]
[1768837174472,0.010758,93002.0,92987.0,0.00016132]
[1768837174677,0.15130042,93003.0,92987.0,0.01092132]
[1768837174978,0.10719187,93003.0,92987.0,0.01092132]
[1768837175879,0.10719187,93003.0,92987.0,0.00016132]
[1768837176080,0.010758,93002.0,92987.0,0.00016132]
[1768837176378,0.010758,93001.0,92987.0,0.00016132]
[1768837176575,0.14054242,93003.0,92987.0,0.00016132]
[1768837176880,0.10719187,93003.0,92987.0,0.00016132]
[1768837177579,0.09643387,93003.0,92989.0,0.010759]
[1768837177777,0.010757,93006.0,92989.0,0.010759]
[1768837177978,0.04410855,93007.0,92990.0,0.010759]
[1768837178276,0.010757,93006.0,92990.0,0.010759]
[1768837178681,0.010757,93006.0,92987.0,0.05400013]
[1768837178880,0.010758,93005.0,92988.0,0.04307981]
[1768837179689,0.010758,93005.0,92989.0,0.010759]
[1768837179873,0.09643387,93009.0,92992.0,0.010759]
[1768837180073,0.10719087,93009.0,92992.0,0.010759]
[1768837180273,0.09684,93011.0,92994.0,0.04060114]
[1768837180878,0.010757,93010.0,92994.0,0.04060114]
[1768837181280,0.09684,93011.0,92994.0,0.04060114]
[1768837182075,0.010757,93007.0,92991.0,0.04060114]
[1768837182986,0.010757,93007.0,92990.0,0.010759]
[1768837183279,0.010757,93007.0,92991.0,0.04060114]
[1768837183484,0.010758,93005.0,92991.0,0.04060114]
[1768837185489,0.13192194,93010.0,92991.0,0.04060114]
[1768837185689,0.09058459,93009.0,92991.0,0.04060114]
[1768837186492,0.010758,93002.0,92991.0,0.04060114]
[1768837186691,0.010758,93002.0,92989.0,0.09034655]
[1768837186882,0.010758,93002.0,92988.0,0.04060114]
[1768837187087,0.010758,93002.0,92987.0,0.00016132]
[1768837187591,0.010758,93002.0,92987.0,0.01092132]
[1768837188889,0.10134259,93004.0,92989.0,0.010759]
[1768837189094,0.010757,93007.0,92991.0,0.010759]
[1768837190292,0.010757,93007.0,92989.0,0.04060114]
[1768837191091,0.10134159,93009.0,92989.0,0.04060114]
[1768837191897,0.010757,93007.0,92991.0,0.010759]
[1768837192287,0.04133735,93014.0,92994.0,0.04060114]
[1768837192489,0.09684,93017.0,93002.0,0.04060114]
[1768837192691,0.09684,93017.0,93003.0,0.04060114]
[1768837193394,0.010756,93016.0,93003.0,0.04060114]
[1768837193999,0.09684,93017.0,93003.0,0.04060114]
[1768837194203,0.010756,93016.0,93003.0,0.04060114]
[1768837194591,0.09684,93017.0,93003.0,0.04060114]
[1768837195193,0.010756,93016.0,93003.0,0.04060114]
[1768837195499,0.107596,93017.0,93003.0,0.04060114]
[1768837195801,0.010756,93015.0,92999.0,0.04978604]
[1768837196191,0.09684,93017.0,92999.0,0.03902804]
[1768837196701,0.010757,93014.0,92999.0,0.03902804]
[1768837196993,0.107596,93017.0,92999.0,0.03902804]
[1768837197188,0.107596,93017.0,93001.0,0.010758]
[1768837198300,0.010756,93015.0,92999.0,0.03902804]
[1768837198499,0.010756,93015.0,92999.0,0.04978604]
[1768837199101,0.107596,93017.0,93000.0,0.010758]
[1768837199602,0.010756,93015.0,92999.0,0.03902804]
[1768837199993,0.010756,93015.0,92999.0,0.04978604]
[1768837200193,0.09684,93017.0,93001.0,0.010758]
[1768837201204,0.09684,93022.0,93005.0,0.03902804]
[1768837201505,0.09684,93029.0,93014.0,0.03902804]
[1768837202007,0.09684,93029.0,93016.0,0.03902804]
[1768837202302,0.09684,93029.0,93013.0,0.03902804]
[1768837202894,0.09684,93029.0,93014.0,0.03902804]
[1768837203101,0.09684,93029.0,93017.0,0.03902804]
[1768837203698,0.010754,93034.0,93017.0,0.03902804]
[1768837204005,0.040754,93034.0,93017.0,0.03902804]
[1768837204300,0.010755,93031.0,93017.0,0.03902804]
[1768837204502,0.010755,93029.0,93013.0,0.03902804]
[1768837204695,0.010755,93027.0,93011.0,0.09486328]
[1768837205801,0.010755,93027.0,93011.0,0.13389132]
[1768837206108,0.010755,93030.0,93011.0,0.13389132]
[1768837206307,0.04205589,93031.0,93013.0,0.03902804]
[1768837206498,0.10658696,93033.0,93013.0,0.03902804]
[1768837206805,0.11583296,93033.0,93014.0,0.09486328]
[1768837207004,0.09583296,93058.0,93036.0,0.13389132]
[1768837207215,0.010752,93052.0,93038.0,0.13389132]
[1768837207402,0.040752,93052.0,93035.0,0.09684]
[1768837207711,0.00236447,93050.0,93035.0,0.09684]
[1768837208013,0.010751,93058.0,93040.0,0.03902804]
[1768837208206,0.010752,93056.0,93040.0,0.03902804]
[1768837208406,0.00236447,93052.0,93040.0,0.03902804]
[1768837208606,0.00236447,93051.0,93040.0,0.03902804]
[1768837208801,0.010752,93055.0,93040.0,0.03902804]
[1768837209008,0.010752,93053.0,93040.0,0.03902804]
[1768837209210,0.00236447,93050.0,93036.0,0.13389132]
[1768837209417,0.010752,93051.0,93036.0,0.13389132]
[1768837209712,0.00236447,93050.0,93036.0,0.13389132]
[1768837210120,0.00236447,93049.0,93037.0,0.03902804]
[1768837210320,0.01311647,93054.0,93037.0,0.03902804]
[1768837210516,0.00236447,93051.0,93037.0,0.03902804]
[1768837210915,0.00236447,93049.0,93037.0,0.03902804]
[1768837211117,0.00236447,93051.0,93037.0,0.03902804]
[1768837211517,0.00236447,93049.0,93037.0,0.03902804]
[1768837211817,0.00236447,93051.0,93037.0,0.03902804]
[1768837212120,0.00236447,93050.0,93037.0,0.03902804]
[1768837212722,0.00236447,93048.0,93037.0,0.03902804]
[1768837212915,0.00236447,93050.0,93037.0,0.03902804]
[1768837213418,0.00236447,93048.0,93037.0,0.03902804]
[1768837213723,0.13788885,93059.0,93037.0,0.03902804]
[1768837213923,0.00236447,93053.0,93037.0,0.03902804]
[1768837214120,0.01,93053.0,93037.0,0.03902804]
[1768837214313,0.00236447,93049.0,93037.0,0.03902804]
[1768837214822,0.00236447,93047.0,93038.0,0.03902804]
[1768837215123,0.00236447,93050.0,93038.0,0.03902804]
[1768837215313,0.010753,93047.0,93038.0,0.03902804]
[1768837215822,0.00236447,93046.0,93035.0,0.09684]
[1768837216017,0.010753,93046.0,93035.0,0.09684]
[1768837216719,0.010753,93046.0,93036.0,0.03902804]
[1768837217318,0.01311747,93046.0,93036.0,0.03902804]
[1768837217819,0.13788885,93041.0,93023.0,0.03902804]
[1768837218022,0.010754,93038.0,93024.0,0.107555]
[1768837218210,0.010754,93038.0,93024.0,0.14658304]
[1768837218416,0.010754,93038.0,93025.0,0.03902804]
[1768837220024,0.010754,93036.0,93025.0,0.03902804]
[1768837220324,0.09819743,93039.0,93018.0,0.03902804]
[1768837220534,0.010753,93046.0,93000.0,0.010758]
[1768837220535,0.010755,93027.0,93019.0,0.0968]
[1768837220717,0.010755,93028.0,93017.0,0.0968]
[1768837220914,0.00236447,93025.0,93014.0,0.13582804]
[1768837221220,0.010755,93024.0,93014.0,0.0968]
[1768837221624,0.010755,93027.0,93014.0,0.0968]
[1768837223222,0.010755,93025.0,93014.0,0.0968]
[1768837223628,0.010755,93023.0,93014.0,0.0968]
[1768837224121,0.01311947,93023.0,93014.0,0.0968]
[1768837224331,0.010756,93021.0,93014.0,0.0968]
[1768837225031,0.00839102,93021.0,93014.0,0.0968]